bitfinex-derivatives/quotes_BTCF0:USTF0_20250629
["timestamp","ask_amount","ask_price","bid_price","bid_amount"]
[1751227904451,0.2788581,107460.0,107450.0,1.99262557]
[1751227904946,0.13,107460.0,107450.0,1.99262557]
[1751227905757,0.13,107460.0,107450.0,2.12046557]
[1751227907657,0.13,107460.0,107450.0,2.17621817]
[1751227909057,0.13,107460.0,107450.0,2.19493045]
[1751227915768,0.13,107460.0,107450.0,2.12046557]
[1751227918668,0.13,107460.0,107450.0,2.17621405]
[1751227926477,0.2232781,107470.0,107460.0,0.1488581]
[1751227926671,0.6832781,107470.0,107460.0,1.54518581]
[1751227927671,0.7483781,107470.0,107460.0,1.54518581]
[1751227927871,0.7503781,107470.0,107460.0,1.54518581]
[1751227928277,0.7503781,107470.0,107460.0,1.60093429]
[1751227928775,0.7523781,107470.0,107460.0,1.60093429]
[1751227928976,0.7523781,107470.0,107460.0,1.56376703]
[1751227930177,0.7523781,107470.0,107460.0,1.53096703]
[1751227931279,0.7523781,107470.0,107460.0,1.51642142]
[1751227931475,0.7523781,107470.0,107460.0,1.53096523]
[1751227932781,0.7523781,107470.0,107460.0,1.51642142]
[1751227933581,0.7849781,107470.0,107460.0,1.51642142]
[1751227937681,0.7849781,107470.0,107460.0,1.53096523]
[1751227938183,0.7849781,107470.0,107460.0,1.00733727]
[1751227938384,0.7849781,107470.0,107460.0,1.47521675]
[1751227938585,0.7849781,107470.0,107460.0,1.53105849]
[1751227939185,0.7849781,107470.0,107460.0,1.00743053]
[1751227939386,0.7849781,107470.0,107460.0,1.53105849]
[1751227940990,0.7849781,107470.0,107460.0,1.46825849]
[1751227942793,0.7849781,107470.0,107460.0,0.94463053]
[1751227942990,0.7849781,107470.0,107460.0,2.02805849]
[1751227946188,0.7849781,107470.0,107460.0,1.50443053]
[1751227946394,1.04679208,107470.0,107460.0,0.07038555]
[1751227946696,1.04679208,107470.0,107460.0,1.04149793]
[1751227946890,1.04679208,107470.0,107460.0,0.89263953]
[1751227947695,1.04679208,107470.0,107460.0,1.04149793]
[1751227948296,1.04679208,107470.0,107460.0,0.77968395]
[1751227948499,1.04679208,107470.0,107460.0,1.04149793]
[1751227948796,1.04679208,107470.0,107460.0,1.30331191]
[1751227951799,0.7849781,107470.0,107460.0,1.30331191]
[1751227955405,0.7849781,107470.0,107460.0,0.77968395]
[1751227955602,0.7849781,107470.0,107460.0,1.30331191]
[1751227956507,0.7849781,107470.0,107460.0,0.77968395]
[1751227956703,0.7849781,107470.0,107460.0,1.30331191]
[1751227958706,0.7849781,107470.0,107460.0,1.34054134]
[1751227962009,0.7849781,107470.0,107460.0,0.81691338]
[1751227962209,0.7849781,107470.0,107460.0,1.34054134]
[1751227967608,0.7849781,107470.0,107460.0,1.40254134]
[1751227968616,0.7849781,107470.0,107460.0,1.36531214]
[1751227970213,0.7849781,107470.0,107460.0,0.84168418]
[1751227970414,0.7849781,107470.0,107460.0,1.36531214]
[1751227971218,0.7523781,107470.0,107460.0,1.36531214]
[1751227971819,0.7191781,107470.0,107460.0,1.36531214]
[1751227973224,0.7191781,107470.0,107460.0,0.84168418]
[1751227973413,0.7191781,107470.0,107460.0,1.36531214]
[1751227973618,0.7191781,107470.0,107460.0,1.39651214]
[1751227973922,0.6872781,107470.0,107460.0,1.39651214]
[1751227991342,0.6872781,107470.0,107460.0,1.3819681]
[1751228000148,0.6872781,107470.0,107460.0,0.85834014]
[1751228000346,0.6872781,107470.0,107460.0,1.3819681]
[1751228000545,0.7178781,107470.0,107460.0,1.3819681]
[1751228000847,0.7479781,107470.0,107460.0,0.7903281]
[1751228001047,0.7799781,107470.0,107460.0,1.2882881]
[1751228002344,0.7799781,107470.0,107460.0,1.3528881]
[1751228003649,0.7799781,107470.0,107460.0,0.82926014]
[1751228003849,0.7799781,107470.0,107460.0,0.84380419]
[1751228004050,0.7799781,107470.0,107460.0,1.36743215]
[1751228004252,0.7799781,107470.0,107460.0,1.33513215]
[1751228008656,0.7799781,107470.0,107460.0,1.37236485]
[1751228009047,0.7799781,107470.0,107460.0,0.87893689]
[1751228009247,0.7799781,107470.0,107460.0,1.40256485]
[1751228018660,0.7799781,107470.0,107460.0,1.36533215]
[1751228023069,0.7178781,107470.0,107460.0,1.36533215]
[1751228023371,0.7178781,107470.0,107460.0,1.39733215]
[1751228033471,0.7178781,107470.0,107460.0,1.3827881]
[1751228046780,0.7178781,107470.0,107460.0,1.36417908]
[1751228048881,0.6872781,107470.0,107460.0,1.36417908]
[1751228052182,0.6872781,107470.0,107460.0,1.3827881]
[1751228056696,0.6872781,107470.0,107460.0,0.8228281]
[1751228056896,0.6872781,107470.0,107460.0,1.3827081]
[1751228059400,0.6872781,107470.0,107460.0,1.39725216]
[1751228059902,0.6872781,107470.0,107460.0,1.34141042]
[1751228061804,0.6872781,107470.0,107460.0,1.4158753]
[1751228064105,0.7185781,107470.0,107460.0,1.4158753]
[1751228067110,0.7185781,107470.0,107460.0,1.34141042]
[1751228073311,0.7185781,107470.0,107460.0,1.39725955]
[1751228073813,0.7185781,107470.0,107460.0,1.34141042]
[1751228074013,0.7185781,107470.0,107460.0,1.39725955]
[1751228074214,0.7185781,107470.0,107460.0,1.34141042]
[1751228082119,0.7185781,107470.0,107460.0,1.4158753]
[1751228089027,0.7185781,107470.0,107460.0,0.8559953]
[1751228089327,0.7185781,107470.0,107460.0,1.3213753]
[1751228089627,0.7828781,107470.0,107460.0,1.3213753]
[1751228095125,0.7828781,107470.0,107460.0,1.3525753]
[1751228095325,0.7828781,107470.0,107460.0,1.3854753]
[1751228098632,0.7828781,107470.0,107460.0,1.3668596]
[1751228102532,0.7512781,107470.0,107460.0,1.3668596]
[1751228106133,0.7185781,107470.0,107460.0,1.3668596]
[1751228108737,0.7185781,107470.0,107460.0,1.3854753]
[1751228117744,0.7185781,107470.0,107460.0,1.31101042]
[1751228119446,0.7185781,107470.0,107460.0,1.3854753]
[1751228121142,0.7185781,107470.0,107460.0,1.31101042]
[1751228122847,0.7185781,107470.0,107460.0,1.3854753]
[1751228125753,0.7185781,107470.0,107460.0,1.4174753]
[1751228138660,0.7185781,107470.0,107460.0,1.39885961]
[1751228151163,0.7185781,107470.0,107460.0,0.83897961]
[1751228151370,0.7185781,107470.0,107460.0,1.39877961]
[1751228154668,0.7185781,107470.0,107460.0,1.4173953]
[1751228158971,0.04637628,107480.0,107470.0,0.1488446]
[1751228159280,0.58521628,107480.0,107470.0,1.13339859]
[1751228159467,0.54800718,107480.0,107470.0,1.1262658]
[1751228159767,0.12,107480.0,107470.0,1.74887978]
[1751228159978,0.5096142,107500.0,107490.0,0.1488169]
[1751228160166,0.2688142,107500.0,107490.0,1.58738563]
[1751228160368,0.12,107500.0,107490.0,1.75178563]
[1751228160665,0.12,107500.0,107490.0,1.79424374]
[1751228160870,0.12,107500.0,107490.0,2.05746435]
[1751228161174,0.12,107500.0,107490.0,2.32746435]
[1751228161471,0.128,107500.0,107490.0,2.21666435]
[1751228161668,0.128,107500.0,107490.0,2.93826435]
[1751228162177,0.133,107500.0,107490.0,2.76284687]
[1751228162477,0.133,107500.0,107490.0,2.42645037]
[1751228163079,0.129,107500.0,107490.0,2.42645037]
[1751228163268,0.129,107500.0,107490.0,2.68826435]
[1751228163874,0.129,107500.0,107490.0,2.87432035]
[1751228164478,0.128,107500.0,107490.0,2.87432035]
[1751228165773,0.128,107500.0,107490.0,2.61250637]
[1751228167078,0.128,107500.0,107490.0,2.68623355]
[1751228168277,0.128,107500.0,107490.0,2.61176867]
[1751228168680,0.128,107500.0,107490.0,2.66727799]
[1751228170880,0.128,107500.0,107490.0,2.65273736]
[1751228172377,0.128,107500.0,107490.0,2.68971543]
[1751228173079,0.125,107500.0,107490.0,2.68971543]
[1751228174177,0.121,107500.0,107490.0,2.68971543]
[1751228174370,0.122,107500.0,107490.0,2.68971543]
[1751228175982,0.122,107500.0,107490.0,1.96811543]
[1751228176182,0.122,107500.0,107490.0,2.68971543]
[1751228176682,0.122,107500.0,107490.0,2.50365943]
[1751228178684,0.122,107500.0,107490.0,2.46668136]
[1751228179378,0.122,107500.0,107490.0,2.72849534]
[1751228181382,0.122,107500.0,107490.0,2.46668136]
[1751228183486,0.270803,107500.0,107490.0,1.87260136]
[1751228183688,0.367303,107500.0,107490.0,2.20330136]
[1751228183883,0.367303,107500.0,107490.0,1.91330136]
[1751228184088,0.367303,107500.0,107490.0,2.20330136]
[1751228184284,0.367303,107500.0,107490.0,2.20342136]
[1751228186482,0.367303,107500.0,107490.0,2.14791204]
[1751228186988,0.367303,107500.0,107490.0,2.11561204]
[1751228187190,0.367303,107500.0,107490.0,2.15887692]
[1751228188689,0.367303,107500.0,107490.0,2.08441204]
[1751228189186,0.367303,107500.0,107490.0,2.15887692]
[1751228197398,0.367303,107500.0,107490.0,2.18937692]
[1751228197902,0.367303,107500.0,107490.0,2.18925692]
[1751228198706,0.367303,107500.0,107490.0,2.11479204]
[1751228199306,0.367303,107500.0,107490.0,2.20787314]
[1751228204006,0.367303,107500.0,107490.0,1.84707314]
[1751228204206,0.367303,107500.0,107490.0,2.20787314]
[1751228205707,0.303403,107500.0,107490.0,2.20787314]
[1751228206111,0.303403,107500.0,107490.0,2.23827314]
[1751228221514,0.1546,107500.0,107490.0,2.23827314]
[1751228222923,0.303403,107500.0,107490.0,2.23827314]
[1751228223219,0.303403,107500.0,107490.0,2.26977314]
[1751228233025,0.303403,107500.0,107490.0,1.90897314]
[1751228233220,0.122,107500.0,107490.0,2.26977314]
[1751228244726,0.122,107500.0,107490.0,2.53158712]
[1751228245230,0.122,107500.0,107490.0,2.26977314]
[1751228246129,0.122,107500.0,107490.0,2.53158712]
[1751228253133,0.001,107510.0,107500.0,0.148803]
[1751228253436,0.131,107510.0,107500.0,1.7532544]
[1751228254237,0.134,107510.0,107500.0,1.7532544]
[1751228254540,0.136,107510.0,107500.0,1.7532544]
[1751228255235,0.2847892,107510.0,107500.0,1.7532544]
[1751228258641,0.2827892,107510.0,107500.0,1.7532544]
[1751228258838,0.3137892,107510.0,107500.0,1.7532544]
[1751228260844,0.165,107510.0,107500.0,1.7532544]
[1751228265645,0.3137892,107510.0,107500.0,1.7532544]
[1751228266447,0.3137892,107510.0,107500.0,1.8810144]
[1751228266949,0.165,107510.0,107500.0,1.8810144]
[1751228270245,0.165,107510.0,107500.0,1.5202144]
[1751228270450,0.165,107510.0,107500.0,1.8810144]
[1751228274045,0.3137891,107510.0,107500.0,1.8810144]
[1751228274445,0.165,107510.0,107500.0,1.8810144]
[1751228278757,0.165,107510.0,107500.0,1.80660494]
[1751228283455,0.165,107510.0,107500.0,1.8810144]
[1751228287957,0.132,107510.0,107500.0,1.8810144]
[1751228294061,0.2807891,107510.0,107500.0,1.8810144]
[1751228295463,0.3134891,107510.0,107500.0,1.8810144]
[1751228295767,0.3134891,107510.0,107500.0,1.61920042]
[1751228298378,0.3134891,107510.0,107500.0,1.09557246]
[1751228298578,0.3134891,107510.0,107500.0,1.61920042]
[1751228299680,0.3134891,107510.0,107500.0,1.8810144]
[1751228301282,0.3134891,107510.0,107500.0,1.61920042]
[1751228309490,0.3134891,107510.0,107500.0,1.10764042]
[1751228309696,0.7361891,107510.0,107500.0,1.66744042]
[1751228310084,0.3761891,107510.0,107500.0,1.66744042]
[1751228310596,0.3761891,107510.0,107500.0,1.59303096]
[1751228311194,0.3761891,107510.0,107500.0,1.59307096]
[1751228313591,0.3761891,107510.0,107500.0,1.33125698]
[1751228313796,0.3761891,107510.0,107500.0,1.59307096]
[1751228314298,0.3761891,107510.0,107500.0,1.069443]
[1751228314498,0.3761891,107510.0,107500.0,1.59307096]
[1751228316998,0.3761891,107510.0,107500.0,1.30668042]
[1751228317199,0.3761891,107510.0,107500.0,1.66748042]
[1751228317997,0.7161891,107510.0,107500.0,1.66748042]
[1751228318497,0.3761891,107510.0,107500.0,1.66748042]
[1751228318801,0.3761891,107510.0,107500.0,1.64887415]
[1751228320793,0.7061891,107510.0,107500.0,0.94023115]
[1751228320995,1.36605398,107510.0,107490.0,0.12616028]
[1751228321200,0.47581698,107500.0,107490.0,0.83573406]
[1751228321502,0.724903,107500.0,107490.0,0.41063078]
[1751228321797,0.674903,107500.0,107490.0,0.97079078]
[1751228321997,0.384903,107500.0,107490.0,0.41063078]
[1751228322199,0.714903,107500.0,107490.0,0.97079078]
[1751228322498,0.724903,107500.0,107490.0,0.97079078]
[1751228322692,0.364903,107500.0,107490.0,0.97079078]
[1751228322891,0.414903,107500.0,107490.0,0.97179078]
[1751228323197,0.734903,107500.0,107490.0,0.97179078]
[1751228323898,0.424903,107500.0,107490.0,0.7099768]
[1751228324200,0.694903,107500.0,107490.0,0.97183078]
[1751228325203,0.694903,107500.0,107490.0,0.98636343]
[1751228326497,0.364903,107500.0,107490.0,0.72454945]
[1751228326700,0.674903,107500.0,107490.0,0.16434945]
[1751228326894,0.674903,107500.0,107490.0,0.98660343]
[1751228327295,0.674903,107500.0,107490.0,0.72478945]
[1751228327491,0.674903,107500.0,107490.0,0.98660343]
[1751228328799,0.684903,107500.0,107490.0,0.79919891]
[1751228328992,0.684903,107500.0,107490.0,1.06101289]
[1751228329197,0.714903,107500.0,107490.0,1.06101289]
[1751228329404,0.424903,107500.0,107490.0,1.06101289]
[1751228330003,0.704903,107500.0,107490.0,1.06101289]
[1751228330203,0.364903,107500.0,107490.0,1.06101289]
[1751228330501,0.424903,107500.0,107490.0,1.06101289]
[1751228334198,0.424903,107500.0,107490.0,1.09171289]
[1751228334399,0.424903,107500.0,107490.0,1.12221289]
[1751228337507,0.394003,107500.0,107490.0,1.12221289]
[1751228338007,0.361003,107500.0,107490.0,1.13760977]
[1751228338201,0.361003,107500.0,107490.0,1.43202375]
[1751228339409,0.301003,107500.0,107490.0,1.72202375]
[1751228341207,0.301003,107500.0,107490.0,1.35761429]
[1751228341407,0.301003,107500.0,107490.0,1.43202375]
[1751228341608,0.301003,107500.0,107490.0,1.35761429]
[1751228343702,0.301003,107500.0,107490.0,1.34308164]
[1751228343902,0.268803,107500.0,107490.0,1.34308164]
[1751228346211,0.268803,107500.0,107490.0,1.35751095]
[1751228347411,0.268803,107500.0,107490.0,1.4174911]
[1751228348211,0.268803,107500.0,107490.0,1.43193219]
[1751228351515,0.268803,107500.0,107490.0,1.41335707]
[1751228352117,0.268803,107500.0,107490.0,0.85291707]
[1751228352415,0.629503,107500.0,107490.0,1.41403707]
[1751228352816,0.299503,107500.0,107490.0,1.15222309]
[1751228353115,0.629503,107500.0,107490.0,1.15222309]
[1751228357208,0.629503,107500.0,107490.0,0.89040911]
[1751228357414,0.629503,107500.0,107490.0,1.13358066]
[1751228357415,0.299503,107500.0,107490.0,1.13358066]
[1751228357614,0.299503,107500.0,107490.0,1.11818378]
[1751228357913,0.659503,107500.0,107490.0,1.11818378]
[1751228358113,0.669503,107500.0,107490.0,1.11818378]
[1751228358317,0.669503,107500.0,107490.0,0.55706378]
[1751228358619,0.669503,107500.0,107490.0,1.11818378]
[1751228358815,0.619503,107500.0,107490.0,1.11818378]
[1751228359524,0.299503,107500.0,107490.0,1.11818378]
[1751228359722,0.659503,107500.0,107490.0,1.11818378]
[1751228359922,0.299503,107500.0,107490.0,1.11818378]
[1751228360222,0.299503,107500.0,107490.0,0.8563698]
[1751228360425,0.619503,107500.0,107490.0,0.96948728]
[1751228360630,0.651503,107500.0,107490.0,1.11830378]
[1751228361027,0.651253,107500.0,107490.0,1.11830378]
[1751228361222,0.91306698,107500.0,107490.0,1.11830378]
[1751228361621,0.95306698,107500.0,107490.0,0.96948728]
[1751228361926,0.331253,107500.0,107490.0,0.69323221]
[1751228362121,0.331253,107500.0,107490.0,0.95504619]
[1751228362424,0.711253,107500.0,107490.0,1.10386269]
[1751228362827,0.711253,107500.0,107490.0,1.12250482]
[1751228363025,0.711253,107500.0,107490.0,0.86069084]
[1751228363226,0.331253,107500.0,107490.0,1.12250482]
[1751228363421,0.331253,107500.0,107490.0,1.15969044]
[1751228364029,0.691253,107500.0,107490.0,1.15969044]
[1751228364628,0.691253,107500.0,107490.0,1.12250482]
[1751228365532,0.331253,107500.0,107490.0,1.12250482]
[1751228366131,0.661253,107500.0,107490.0,1.12250482]
[1751228367620,0.661253,107500.0,107490.0,1.15969009]
[1751228368227,0.661253,107500.0,107490.0,0.89787611]
[1751228368433,0.661253,107500.0,107490.0,1.15969009]
[1751228369037,0.661253,107500.0,107490.0,1.10385575]
[1751228369932,0.661253,107500.0,107490.0,1.15969009]
[1751228371234,0.661253,107500.0,107490.0,0.74905961]
[1751228371435,0.661253,107500.0,107490.0,1.10385575]
[1751228372139,0.629253,107500.0,107490.0,1.10385575]
[1751228372842,0.629253,107500.0,107490.0,1.15969009]
[1751228376445,0.629253,107500.0,107490.0,1.42150407]
[1751228378851,0.629253,107500.0,107490.0,1.3843188]
[1751228381750,0.629253,107500.0,107490.0,1.12250482]
[1751228384749,0.629253,107500.0,107490.0,1.3843188]
[1751228388954,0.629253,107500.0,107490.0,1.12250482]
[1751228394557,0.598553,107500.0,107490.0,1.3843188]
[1751228394761,0.388553,107500.0,107490.0,1.40289392]
[1751228394963,0.388553,107500.0,107490.0,1.97369392]
[1751228396068,0.388553,107500.0,107490.0,1.98823322]
[1751228398070,0.268553,107500.0,107490.0,1.98823322]
[1751228398570,0.12,107500.0,107490.0,2.11711322]
[1751228398867,0.12,107500.0,107490.0,2.3789272]
[1751228399068,0.12,107500.0,107490.0,2.11711322]
[1751228403262,0.12,107500.0,107490.0,2.3789272]
[1751228403774,0.12,107500.0,107490.0,2.11711322]
[1751228405970,0.12,107500.0,107490.0,2.3789272]
[1751228406171,0.12,107500.0,107490.0,2.11711322]
[1751228407176,0.12,107500.0,107490.0,2.3789272]
[1751228407773,0.12,107500.0,107490.0,2.11711322]
[1751228409581,0.12,107500.0,107490.0,2.3789272]
[1751228409781,0.12,107500.0,107490.0,2.11711322]
[1751228411278,0.12,107500.0,107490.0,2.04270376]
[1751228413376,0.12,107500.0,107490.0,2.11700348]
[1751228414176,0.12,107500.0,107490.0,2.04270376]
[1751228414376,0.12,107500.0,107490.0,2.11700181]
[1751228417184,0.12,107500.0,107490.0,2.04270376]
[1751228417482,0.12,107500.0,107490.0,2.11700309]
[1751228418282,0.12,107500.0,107490.0,2.04270376]
[1751228418580,0.12,107500.0,107490.0,2.30451774]
[1751228418975,0.12,107500.0,107490.0,2.37881962]
[1751228422291,0.1802014,107510.0,107500.0,0.1488027]
[1751228422590,0.2302014,107510.0,107500.0,1.71952753]
[1751228423290,0.2302014,107510.0,107500.0,1.66378394]
[1751228423588,0.2312014,107510.0,107500.0,1.66378394]
[1751228424292,0.2628014,107510.0,107500.0,1.73808582]
[1751228425396,0.2628014,107510.0,107500.0,1.71955024]
[1751228425790,0.2939014,107510.0,107500.0,1.71955024]
[1751228430499,0.2939014,107510.0,107500.0,1.73808582]
[1751228436300,0.2939014,107510.0,107500.0,1.73808433]
[1751228439709,0.2939014,107510.0,107500.0,0.95264239]
[1751228439999,0.2939014,107510.0,107500.0,2.10283035]
[1751228441805,0.2939014,107510.0,107500.0,1.97391035]
[1751228451514,0.2939014,107510.0,107500.0,2.00691035]
[1751228451717,0.2939014,107510.0,107500.0,2.03821035]
[1751228453618,0.2628014,107510.0,107500.0,1.67741035]
[1751228453819,0.2628014,107510.0,107500.0,2.03821035]
[1751228454018,0.2322014,107510.0,107500.0,2.03821035]
[1751228455618,0.2322014,107510.0,107500.0,2.06911035]
[1751228461119,0.2018014,107510.0,107500.0,2.33092433]
[1751228463323,0.2018014,107510.0,107500.0,2.34013295]
[1751228465314,0.2018014,107510.0,107500.0,2.33092433]
[1751228468226,0.2018014,107510.0,107500.0,2.45964433]
[1751228470025,0.2018014,107510.0,107500.0,2.19783035]
[1751228470225,0.2018014,107510.0,107500.0,1.50727035]
[1751228470414,0.2018014,107510.0,107500.0,2.19755035]
[1751228476829,0.2018014,107510.0,107500.0,2.45936433]
[1751228481130,0.2018014,107510.0,107500.0,2.19755035]
[1751228481833,0.2018014,107510.0,107500.0,2.45936433]
[1751228486636,0.2018014,107510.0,107500.0,2.19755035]
[1751228490638,0.2018014,107510.0,107500.0,2.45936433]
[1751228491138,0.2018014,107510.0,107500.0,2.19755035]
[1751228491839,0.2018014,107510.0,107500.0,2.45936433]
[1751228494040,0.2018014,107510.0,107500.0,2.19755035]
[1751228497340,0.2341014,107510.0,107500.0,1.93573637]
[1751228497545,0.2341014,107510.0,107500.0,1.67392239]
[1751228497747,0.2341014,107510.0,107500.0,2.19755035]
[1751228498344,0.2341014,107510.0,107500.0,2.06883035]
[1751228511044,0.2341014,107510.0,107500.0,1.70803035]
[1751228511250,0.2341014,107510.0,107500.0,2.06883035]
[1751228519251,0.2341014,107510.0,107500.0,1.70803035]
[1751228519454,0.2341014,107510.0,107500.0,2.06883035]
[1751228521557,0.2341014,107510.0,107500.0,2.06883021]
[1751228524553,0.2341014,107510.0,107500.0,0.85647021]
[1751228524860,0.2341014,107510.0,107500.0,2.06791021]
[1751228545376,0.2018014,107510.0,107500.0,2.06791021]
[1751228545870,0.2018014,107510.0,107500.0,2.32972419]
[1751228546678,0.2018014,107510.0,107500.0,2.45792419]
[1751228548581,0.2018014,107510.0,107500.0,2.32972419]
[1751228555778,0.2018014,107510.0,107500.0,2.06791021]
[1751228559986,0.2018014,107510.0,107500.0,2.06767021]
[1751228580000,0.2018014,107510.0,107500.0,2.19583021]
[1751228581905,0.2018014,107510.0,107500.0,2.06767021]
[1751228585008,0.2018014,107510.0,107500.0,2.19583021]
[1751228589819,0.2018014,107510.0,107500.0,2.45764419]
[1751228590013,0.2018014,107510.0,107500.0,2.32948419]
[1751228596624,0.2018014,107510.0,107500.0,2.45764419]
[1751228598224,0.2018014,107510.0,107500.0,2.45756419]
[1751228598915,0.2018014,107510.0,107500.0,2.38326231]
[1751228601527,0.2018014,107510.0,107500.0,2.45756419]
[1751228602126,0.2018014,107510.0,107500.0,2.32940419]
[1751228604429,0.2018014,107510.0,107500.0,2.45756419]
[1751228607334,0.053,107510.0,107500.0,2.45756419]
[1751228608437,0.053,107510.0,107500.0,2.47634341]
[1751228616335,0.1487622,107530.0,107520.0,1.00860074]
[1751228616540,0.2887622,107530.0,107520.0,2.45529665]
[1751228617028,0.2887622,107530.0,107520.0,2.55029665]
[1751228617540,0.2957622,107530.0,107520.0,2.55029665]
[1751228617739,0.2957622,107530.0,107520.0,2.28848267]
[1751228618137,0.2957622,107530.0,107520.0,2.2884749]
[1751228619034,0.2927622,107530.0,107520.0,2.2884749]
[1751228619235,0.2947622,107530.0,107520.0,2.2884749]
[1751228620140,0.2907622,107530.0,107520.0,2.23271763]
[1751228620342,0.2927622,107530.0,107520.0,2.29253335]
[1751228624644,0.2927622,107530.0,107520.0,2.25534015]
[1751228624846,0.2927622,107530.0,107520.0,2.23667561]
[1751228625241,0.3244622,107530.0,107520.0,2.23667561]
[1751228633145,0.3244622,107530.0,107520.0,1.87587561]
[1751228633351,0.3244622,107530.0,107520.0,2.23667561]
[1751228634751,0.3244622,107530.0,107520.0,2.25534015]
[1751228635052,0.3244622,107530.0,107520.0,2.18098676]
[1751228635251,0.3244622,107530.0,107520.0,2.25534015]
[1751228645164,0.3244622,107530.0,107520.0,2.51715413]
[1751228646665,0.3244622,107530.0,107520.0,2.25534015]
[1751228648974,0.3244622,107530.0,107520.0,2.18098676]
[1751228649173,0.3244622,107530.0,107520.0,2.27406786]
[1751228651874,0.6544622,107530.0,107520.0,1.0248482]
[1751228652074,0.3571622,107530.0,107520.0,1.23252386]
[1751228652379,0.3896622,107530.0,107520.0,0.7088959]
[1751228652573,0.3896622,107530.0,107520.0,1.23252386]
[1751228652980,0.3896622,107530.0,107520.0,1.52252386]
[1751228653179,0.3896622,107530.0,107520.0,1.55512386]
[1751228653778,0.3896622,107530.0,107520.0,1.58772386]
[1751228656380,0.3896622,107530.0,107520.0,1.66213532]
[1751228656882,0.3244622,107530.0,107520.0,1.66213532]
[1751228657085,0.3244622,107530.0,107520.0,1.69393532]
[1751228657974,0.3244622,107530.0,107520.0,2.3165493]
[1751228658183,0.2927622,107530.0,107520.0,2.3165493]
[1751228662980,0.2927622,107530.0,107520.0,2.33099177]
[1751228667087,0.2927622,107530.0,107520.0,2.3165493]
[1751228669189,0.144,107530.0,107520.0,2.3165493]
[1751228670289,0.001,107540.0,107530.0,0.1487622]
[1751228670590,0.051,107540.0,107530.0,1.63391388]
[1751228671084,0.051,107540.0,107530.0,1.64844801]
[1751228671484,0.055,107540.0,107530.0,1.64844801]
[1751228671893,0.057,107540.0,107530.0,1.64844801]
[1751228672894,0.055,107540.0,107530.0,1.64844801]
[1751228673490,0.051,107540.0,107530.0,1.64944801]
[1751228676497,0.051,107540.0,107530.0,1.65871643]
[1751228678800,0.051,107540.0,107530.0,1.58433382]
[1751228679000,0.051,107540.0,107530.0,1.67741492]
[1751228679705,0.051,107540.0,107530.0,1.6681465]
[1751228689006,0.051,107540.0,107530.0,1.74237633]
[1751228689210,0.051,107540.0,107530.0,1.64929523]
[1751228693214,0.051,107540.0,107530.0,1.61719523]
[1751228693514,0.051,107540.0,107530.0,1.58669523]
[1751228693713,0.051,107540.0,107530.0,1.55659523]
[1751228694314,0.051,107540.0,107530.0,1.4823654]
[1751228695116,0.051,107540.0,107530.0,1.49326494]
[1751228697319,0.051,107540.0,107530.0,1.58634604]
[1751228699419,0.051,107540.0,107530.0,1.58634463]
[1751228702325,0.051,107540.0,107530.0,1.84815861]
[1751228705227,0.051,107540.0,107530.0,1.58634463]
[1751228707625,0.051,107540.0,107530.0,1.56764414]
[1751228708922,0.051,107540.0,107530.0,1.49326353]
[1751228713332,0.051,107540.0,107530.0,1.13246353]
[1751228713537,0.051,107540.0,107530.0,1.49326353]
[1751228718038,0.051,107540.0,107530.0,1.58634463]
[1751228719135,0.051,107540.0,107530.0,1.56766521]
[1751228721636,0.051,107540.0,107530.0,1.20686521]
[1751228721836,0.051,107540.0,107530.0,1.56766521]
[1751228726738,0.051,107540.0,107530.0,1.49326353]
[1751228726944,0.051,107540.0,107530.0,1.58634463]
[1751228730947,0.051,107540.0,107530.0,1.61894463]
[1751228731147,0.051,107540.0,107530.0,1.65154463]
[1751228734049,0.051,107540.0,107530.0,1.68364463]
[1751228741656,0.051,107540.0,107530.0,1.32284463]
[1751228741857,0.051,107540.0,107530.0,1.68364463]
[1751228745753,0.051,107540.0,107530.0,1.66488046]
[1751228749161,0.051,107540.0,107530.0,1.59056353]
[1751228749860,0.1997477,107540.0,107530.0,1.59056353]
[1751228754461,0.051,107540.0,107530.0,1.59056353]
[1751228755662,0.051,107540.0,107530.0,1.68364463]
[1751228759070,0.051,107540.0,107530.0,1.75796285]
[1751228759270,0.051,107540.0,107530.0,1.66488175]
[1751228759661,0.051,107540.0,107530.0,1.66488176]
[1751228768880,0.051,107540.0,107530.0,1.59056354]
[1751228769987,0.051,107540.0,107530.0,1.68364464]
[1751228781194,0.82156168,107540.0,107530.0,0.91587001]
[1751228781399,0.87716168,107540.0,107530.0,1.08672399]
[1751228781597,0.87716168,107540.0,107530.0,1.01240886]
[1751228781994,0.6153477,107540.0,107530.0,1.01240886]
[1751228783601,0.2953477,107540.0,107530.0,1.01240886]
[1751228783802,0.2953477,107540.0,107530.0,1.27422284]
[1751228788206,0.2953477,107540.0,107530.0,1.33763842]
[1751228788506,0.2953477,107540.0,107530.0,1.27422384]
[1751228788706,0.2953477,107540.0,107530.0,1.26332329]
[1751228789206,0.2953477,107540.0,107530.0,1.33763842]
[1751228789407,0.2953477,107540.0,107530.0,1.31898344]
[1751228790908,0.2953477,107540.0,107530.0,1.26332329]
[1751228791211,0.2953477,107540.0,107530.0,1.24776218]
[1751228792410,0.2953477,107540.0,107530.0,1.30340082]
[1751228792914,0.2953477,107540.0,107530.0,1.24776218]
[1751228793410,0.2953477,107540.0,107530.0,1.30339957]
[1751228793610,0.2953477,107540.0,107530.0,1.24776218]
[1751228795013,0.2953477,107540.0,107530.0,1.30339581]
[1751228797307,0.2953477,107540.0,107530.0,1.33469581]
[1751228799216,0.2953477,107540.0,107530.0,1.62469581]
[1751228800212,0.2953477,107540.0,107530.0,1.65659581]
[1751228803519,0.2620477,107540.0,107530.0,1.65659581]
[1751228804720,0.2620477,107540.0,107530.0,1.36659581]
[1751228804919,0.2620477,107540.0,107530.0,1.65659581]
[1751228808019,0.2303477,107540.0,107530.0,1.65659581]
[1751228808214,0.2303477,107540.0,107530.0,1.63406218]
[1751228809318,0.2303477,107540.0,107530.0,1.34406218]
[1751228810224,0.2303477,107540.0,107530.0,1.41837731]
[1751228812324,0.2303477,107540.0,107530.0,1.70837731]
[1751228819736,0.2303477,107540.0,107530.0,1.70837923]
[1751228821939,0.2303477,107540.0,107530.0,1.41837923]
[1751228822127,0.2303477,107540.0,107530.0,1.70837923]
[1751228822538,0.2303477,107540.0,107530.0,1.41837923]
[1751228822739,0.2303477,107540.0,107530.0,1.70837923]
[1751228823340,0.2303477,107540.0,107530.0,1.41837923]
[1751228823840,0.2303477,107540.0,107530.0,1.70837923]
[1751228829141,0.2303477,107540.0,107530.0,1.6340641]